bitfinex-derivatives/quotes_SOLF0:USTF0_20241103
["timestamp","ask_amount","ask_price","bid_price","bid_amount"]
[1730623936291,6.56819607,163.94,163.88,6.56819607]
[1730623936490,3.0518,163.9,163.88,6.56819607]
[1730623939199,4.34,163.93,163.88,6.56819607]
[1730623939405,3.0518,163.89,163.87,6.56819607]
[1730623941587,3.0518,163.89,163.8,1.3061]
[1730623941588,4.34,163.93,163.88,6.56819607]
[1730623942799,6.56819607,163.97,163.9,6.56819607]
[1730623943001,4.34,163.96,163.92,6.56819607]
[1730623943399,4.34,163.96,163.93,6.56819607]
[1730623943702,6.56819607,163.99,163.93,6.56819607]
[1730623943703,4.34,163.97,163.93,6.56819607]
[1730623944002,3.0506,163.96,163.93,6.56819607]
[1730623944604,3.051,163.94,163.92,6.56819607]
[1730623944804,3.051,163.94,163.9,6.56819607]
[1730623945299,3.051,163.94,163.9,9.61979607]
[1730623946202,3.051,163.94,163.9,6.56819607]
[1730623946502,3.051,163.94,163.92,6.56819607]
[1730623947604,3.051,163.94,163.91,9.61969607]
[1730623948109,3.051,163.94,163.91,6.56819607]
[1730623948491,4.34,163.97,163.91,6.56819607]
[1730623948695,3.0509,163.95,163.91,6.56819607]
[1730623948900,4.34,163.97,163.91,9.61959607]
[1730623949610,4.34,163.97,163.91,6.56819607]
[1730623949905,6.56819607,163.96,163.91,6.56819607]
[1730623950306,3.0508,163.95,163.91,6.56819607]
[1730623950501,6.56819607,163.96,163.91,6.56819607]
[1730623951714,3.0513,163.93,163.91,6.56819607]
[1730623953696,4.34,163.97,163.91,6.56819607]
[1730623953897,3.0509,163.95,163.92,6.56819607]
[1730623954713,3.0509,163.94,163.92,6.56819607]
[1730623956313,3.0509,163.94,163.91,9.61959607]
[1730623956808,3.0509,163.94,163.91,6.56819607]
[1730623959515,3.0513,163.92,163.91,6.56819607]
[1730623967519,6.56819607,163.95,163.88,6.56819607]
[1730623968133,3.0516,163.91,163.88,6.56819607]
[1730623969116,6.56819607,163.95,163.88,6.56819607]
[1730623970328,3.0518,163.9,163.88,6.56819607]
[1730623970628,3.8,163.92,163.88,6.56819607]
[1730623971819,3.0518,163.89,163.88,6.56819607]
[1730623972014,3.8,163.92,163.87,6.56819607]
[1730623972210,10.36819607,163.92,163.87,6.56819607]
[1730623972425,3.0522,163.88,163.87,6.56819607]
[1730623973417,3.0523,163.87,163.85,6.56819607]
[1730623974028,6.56819607,163.9,163.85,6.56819607]
[1730623974328,6.56819607,163.9,163.83,6.56819607]
[1730623975015,3.0525,163.86,163.83,6.56819607]
[1730623975424,3.8,163.87,163.83,6.56819607]
[1730623976329,3.0527,163.85,163.83,6.56819607]
[1730623980621,3.0528,163.84,163.83,6.56819607]
[1730623982527,3.0527,163.85,163.83,6.56819607]
[1730623987030,3.8,163.87,163.83,6.56819607]
[1730623987228,3.0528,163.84,163.83,6.56819607]
[1730623988835,3.0527,163.85,163.83,6.56819607]
[1730623991236,3.8,163.87,163.83,6.56819607]
[1730623991541,3.8,163.87,163.82,6.56819607]
[1730623992541,3.0527,163.85,163.82,6.56819607]
[1730623994258,3.0529,163.84,163.82,6.56819607]
[1730623994737,10.36819607,163.87,163.8,7.87429607]
[1730623994943,3.0531,163.83,163.8,7.87429607]
[1730623995141,10.36819607,163.87,163.8,6.56819607]
[1730623995446,3.0526,163.85,163.8,6.56819607]
[1730623995651,10.36819607,163.87,163.8,6.56819607]
[1730623996244,3.0535,163.8,163.77,6.56819607]
[1730623997151,6.56819607,163.84,163.77,6.56819607]
[1730623997339,3.0534,163.81,163.77,9.62219607]
[1730623997747,10.10819607,163.82,163.75,9.62249607]
[1730623997942,3.54,163.81,163.75,6.56819607]
[1730623998245,3.0544,163.76,163.74,6.56819607]
[1730623998447,3.0544,163.76,163.72,9.62309607]
[1730623998640,6.56819607,163.79,163.72,9.62309607]
[1730623998838,6.56819607,163.77,163.71,6.56819607]
[1730623999040,2.6278,163.8,163.69,61.84018254]
[1730623999041,10.10819607,163.76,163.69,61.84018254]
[1730623999450,3.0552,163.72,163.69,61.84018254]
[1730624001851,6.56819607,163.74,163.68,6.56819607]
[1730624003148,3.0552,163.72,163.68,9.62389607]
[1730624003556,6.56819607,163.74,163.68,9.62389607]
[1730624003740,3.055,163.73,163.68,6.56819607]
[1730624003946,3.055,163.73,163.69,9.62369607]
[1730624005851,10.10819607,163.76,163.69,9.62369607]
[1730624006053,3.055,163.72,163.69,9.62369607]
[1730624007367,3.0553,163.71,163.68,9.62389607]
[1730624007547,6.56819607,163.73,163.66,7.93749607]
[1730624008156,3.0555,163.7,163.67,3.0559]
[1730624009856,3.0551,163.72,163.68,9.62379607]
[1730624010757,3.0552,163.72,163.68,9.62379607]
[1730624011151,10.10819607,163.76,163.7,9.62359607]
[1730624012251,3.0549,163.73,163.7,9.62359607]
[1730624016362,3.0548,163.74,163.71,3.0552]
[1730624021660,3.54,163.75,163.73,3.0548]
[1730624021865,66.39559818,163.78,163.66,1.3693]
[1730624021866,59.82740211,163.78,163.74,6.56819607]
[1730624022068,3.54,163.79,163.74,6.56819607]
[1730624022454,6.5939,163.79,163.75,3.0543]
[1730624022959,3.54,163.79,163.75,3.0543]
[1730624023159,3.0539,163.78,163.75,3.0543]
[1730624025180,3.0539,163.78,163.74,6.56819607]
[1730624025365,3.0539,163.78,163.74,3.0546]
[1730624026069,3.054,163.78,163.74,3.0545]
[1730624026263,3.054,163.78,163.74,9.62269607]
[1730624028371,10.10819607,163.79,163.73,6.56819607]
[1730624028569,10.10819607,163.79,163.72,3.0549]
[1730624028570,3.0545,163.75,163.72,3.0549]
[1730624029072,6.56819607,163.78,163.72,3.0549]
[1730624029479,3.0544,163.76,163.72,3.0549]
[1730624030175,6.56819607,163.78,163.72,3.0549]
[1730624030374,6.56819607,163.78,163.71,6.56819607]
[1730624030675,6.56819607,163.78,163.66,1.3693]
[1730624030676,6.56819607,163.76,163.7,6.56819607]
[1730624031062,6.56819607,163.76,163.7,9.62349607]
[1730624031677,3.0548,163.73,163.7,9.62349607]
[1730624032279,3.055,163.72,163.7,6.56819607]
[1730624033270,3.0549,163.73,163.7,6.56819607]
[1730624033476,3.0549,163.73,163.7,9.62349607]
[1730624034069,3.0549,163.73,163.71,6.56819607]
[1730624037081,3.34,163.74,163.71,6.56819607]
[1730624037279,3.34,163.74,163.64,3.0599356]
[1730624037280,3.34,163.74,163.7,6.56819607]
[1730624037984,3.34,163.74,163.73,6.56819607]
[1730624038187,3.34,163.74,163.71,6.56819607]
[1730624039384,3.0548,163.74,163.71,9.62329607]
[1730624039576,6.3948,163.74,163.71,9.62329607]
[1730624039779,6.3948,163.74,163.71,3.0551]
[1730624040486,3.34,163.74,163.71,3.0551]
[1730624040684,3.0548,163.73,163.71,3.0551]
[1730624043183,6.3947,163.74,163.71,3.0551]
[1730624043779,3.34,163.74,163.71,6.56819607]
[1730624043977,3.34,163.74,163.73,3.0548]
[1730624044881,3.34,163.74,163.72,3.055]
[1730624045591,3.34,163.76,163.73,9.62279607]
[1730624045889,3.34,163.77,163.73,9.62279607]
[1730624046192,3.0543,163.76,163.73,9.62279607]
[1730624046482,3.34,163.79,163.76,3.0542]
[1730624046687,3.34,163.79,163.76,9.62239607]
[1730624046885,6.3939,163.79,163.76,9.62239607]
[1730624047075,3.34,163.79,163.75,9.62259607]
[1730624047684,3.054,163.78,163.75,9.62259607]
[1730624049488,6.3938,163.79,163.76,3.0542]
[1730624049689,6.3938,163.79,163.76,9.62239607]
[1730624050076,3.0539,163.78,163.76,9.62239607]
[1730624050275,3.0539,163.78,163.76,6.56819607]
[1730624051582,3.34,163.79,163.77,3.054]
[1730624055898,66.15210601,163.8,163.78,6.56819607]
[1730624057196,6.3335,163.8,163.78,6.56819607]
[1730624058380,43.98,163.84,163.78,6.56819607]
[1730624058581,43.98,163.84,163.74,3.07237349]
[1730624058582,6.3331,163.83,163.8,3.0534]
[1730624062099,3.28,163.83,163.8,3.0534]
[1730624062292,3.28,163.83,163.81,9.62149607]
[1730624062493,3.28,163.83,163.81,6.56819607]
[1730624063204,6.333,163.83,163.81,6.56819607]
[1730624064308,3.0531,163.82,163.79,6.56819607]
[1730624064504,3.28,163.83,163.78,3.0537]
[1730624064914,3.0532,163.82,163.79,9.62179607]
[1730624067327,3.28,163.83,163.79,6.56819607]
[1730624067622,3.0534,163.81,163.79,6.56819607]
[1730624073717,3.28,163.83,163.8,6.56819607]
[1730624073930,6.333,163.83,163.8,9.62159607]
[1730624074728,6.333,163.83,163.81,3.0533]
[1730624075523,6.333,163.83,163.8,9.62169607]
[1730624076333,3.0527,163.85,163.82,9.62119607]
[1730624076514,3.28,163.85,163.84,6.56819607]
[1730624077819,7.94829607,163.91,163.84,6.56819607]
[1730624078023,3.28,163.9,163.85,6.56819607]
[1730624078821,3.0521,163.88,163.85,6.56819607]
[1730624079126,3.28,163.87,163.85,6.56819607]
[1730624082528,3.0525,163.86,163.84,6.56819607]
[1730624083938,6.3323,163.87,163.84,9.62089607]
[1730624086839,3.0526,163.85,163.82,6.56819607]
[1730624087137,3.28,163.87,163.82,6.56819607]
[1730624087338,3.0525,163.86,163.84,6.56819607]
[1730624088532,6.3325,163.86,163.84,6.56819607]
[1730624094337,3.0526,163.85,163.84,6.56819607]
[1730624095539,3.28,163.86,163.84,9.62089607]
[1730624100141,4.3346,163.92,163.88,3.0519]
[1730624100345,1.2831,163.92,163.9,6.56819607]
[1730624100840,1.2831,163.92,163.88,6.56819607]
[1730624101039,1.2831,163.92,163.86,6.56819607]
[1730624102245,3.0516,163.91,163.86,6.56819607]
[1730624102546,1.2831,163.92,163.86,6.56819607]
[1730624102950,1.2831,163.92,163.88,6.56819607]
[1730624104244,3.0516,163.91,163.88,9.62019607]
[1730624104852,3.28,163.91,163.9,6.56819607]
[1730624106345,6.3315,163.91,163.9,6.56819607]
[1730624107847,3.28,163.91,163.9,6.56819607]
[1730624108054,45.2841,163.95,163.9,6.56819607]
[1730624108255,3.28,163.94,163.9,6.56819607]
[1730624108558,3.28,163.94,163.91,6.56819607]
[1730624108939,45.2841,163.95,163.91,6.56819607]
[1730624109143,3.28,163.94,163.91,6.56819607]
[1730624109344,3.0511,163.93,163.91,6.56819607]
[1730624110250,45.2841,163.95,163.91,9.61969607]
[1730624110251,3.0509,163.95,163.91,9.61969607]
[1730624110444,3.28,163.94,163.91,9.61969607]
[1730624111056,3.28,163.94,163.91,6.56819607]
[1730624111258,3.28,163.94,163.92,3.0513]
[1730624111865,6.3309,163.95,163.93,6.56819607]
[1730624112161,3.28,163.95,163.93,9.61929607]
[1730624114047,3.28,163.95,163.93,6.56819607]
[1730624115953,6.3306,163.96,163.93,6.56819607]
[1730624120769,6.3306,163.96,163.93,9.61919607]
[1730624121671,6.3306,163.96,163.94,6.56819607]
[1730624122462,9.84819607,163.96,163.91,6.56819607]
[1730624123558,3.0512,163.93,163.91,6.56819607]
[1730624127770,3.0512,163.93,163.92,6.56819607]
[1730624130283,3.28,163.96,163.92,6.56819607]
[1730624130482,3.051,163.94,163.92,6.56819607]
[1730624130975,3.28,163.96,163.92,6.56819607]
[1730624131283,3.28,163.96,163.94,6.56819607]
[1730624131680,3.0509,163.95,163.94,6.56819607]
[1730624133773,3.051,163.94,163.93,6.56819607]
[1730624133974,6.56819607,164.0,163.93,6.56819607]
[1730624133975,3.28,163.99,163.93,6.56819607]
[1730624134178,3.28,163.99,163.97,6.56819607]
[1730624134379,6.3301,163.99,163.97,6.56819607]
[1730624141984,3.0501,163.99,163.97,6.56819607]
[1730624142283,6.3301,163.99,163.97,6.56819607]
[1730624143873,1.2879,164.03,163.97,6.56819607]
[1730624144073,1.2879,164.03,164.0,6.56819607]
[1730624144277,3.28,164.01,164.0,6.56819607]
[1730624145091,6.3296,164.01,164.0,6.56819607]
[1730624146890,6.3296,164.01,163.98,6.56819607]
[1730624147387,3.0499,164.0,163.98,6.56819607]
[1730624147795,3.28,164.01,163.98,6.56819607]
[1730624147980,3.0498,164.0,163.98,6.56819607]
[1730624148483,3.28,164.01,163.98,6.56819607]
[1730624148681,3.05,163.99,163.97,6.56819607]
[1730624150598,3.05,163.99,163.98,6.56819607]
[1730624153385,3.28,164.01,163.97,6.56819607]
[1730624153594,3.0503,163.98,163.95,6.56819607]
[1730624153895,3.0503,163.98,163.97,6.56819607]
[1730624154088,3.0499,164.0,163.97,6.56819607]
[1730624154289,3.28,164.01,163.98,6.56819607]
[1730624154693,3.0499,164.0,163.98,6.56819607]
[1730624154880,6.3099,164.0,163.98,6.56819607]
[1730624155086,9.82819607,164.0,163.93,6.56819607]
[1730624155285,3.0507,163.95,163.93,6.56819607]
[1730624155492,9.82819607,164.0,163.93,6.56819607]
[1730624155890,3.0509,163.95,163.93,6.56819607]
[1730624156986,3.26,163.95,163.91,6.56819607]
[1730624157187,3.26,163.95,163.89,6.56819607]
[1730624157795,3.0513,163.93,163.89,9.61999607]
[1730624157996,3.0513,163.93,163.91,6.56819607]
[1730624161110,3.0513,163.93,163.89,3.0518]
[1730624161111,3.0513,163.93,163.9,6.56819607]
[1730624162105,3.0513,163.92,163.9,6.56819607]
[1730624167504,3.26,164.0,163.91,6.56819607]
[1730624167698,3.26,164.0,163.96,6.56819607]
[1730624167900,3.0503,163.98,163.96,6.56819607]
[1730624168499,3.0505,163.96,163.95,6.56819607]
[1730624170307,3.0508,163.95,163.93,6.56819607]
[1730624172613,3.0509,163.94,163.93,6.56819607]
[1730624173309,3.26,163.94,163.9,41.92270054]
[1730624174209,3.0511,163.93,163.9,41.92270054]
[1730624174401,3.0511,163.93,163.9,6.56819607]
[1730624180112,3.26,163.94,163.9,6.56819607]
[1730624180314,6.56819607,163.93,163.87,6.56819607]
[1730624181019,6.56819607,163.92,163.87,6.56819607]
[1730624181318,6.56819607,163.92,163.85,6.56819607]
[1730624182010,3.052,163.89,163.85,6.56819607]
[1730624182208,3.26,163.89,163.87,6.56819607]
[1730624182817,3.26,163.89,163.87,9.62039607]
[1730624184320,6.3119,163.89,163.87,6.56819607]
[1730624185805,6.3119,163.89,163.87,9.62039607]
[1730624186018,3.26,163.89,163.87,9.62039607]
[1730624186411,3.0517,163.9,163.87,9.62039607]
[1730624189619,3.26,163.92,163.87,9.62039607]
[1730624190211,3.0518,163.9,163.87,9.62039607]
[1730624193721,3.26,163.92,163.87,9.62039607]
[1730624194026,3.26,163.92,163.86,3.0524]
[1730624194225,3.26,163.92,163.85,6.56819607]
[1730624195026,3.0517,163.9,163.86,3.0522]
[1730624196926,3.0519,163.89,163.86,3.0522]
[1730624198017,3.0522,163.88,163.85,9.62069607]
[1730624198229,6.56819607,163.9,163.84,6.56819607]
[1730624198613,3.0525,163.86,163.84,6.56819607]
[1730624199221,3.0525,163.86,163.84,9.62099607]
[1730624199426,6.56819607,163.91,163.85,6.56819607]
[1730624199626,4.6338,163.92,163.87,6.56819607]
[1730624199933,4.6338,163.92,163.87,9.62029607]
[1730624200326,3.0518,163.9,163.87,9.62029607]
[1730624200631,4.6338,163.92,163.87,6.56819607]
[1730624200819,3.0518,163.89,163.87,6.56819607]
[1730624202327,3.052,163.89,163.85,9.62069607]
[1730624205526,4.6338,163.92,163.85,9.62069607]
[1730624206428,3.0519,163.89,163.85,9.62069607]
[1730624210531,3.0519,163.89,163.85,6.56819607]
[1730624210733,3.0519,163.89,163.86,3.0524]
[1730624214636,3.052,163.88,163.86,3.0524]
[1730624216843,3.0518,163.9,163.87,9.62029607]
[1730624218749,3.0519,163.89,163.87,9.62029607]
[1730624220535,4.6338,163.92,163.87,6.56819607]
[1730624220742,3.0522,163.88,163.85,9.62069607]
[1730624220937,6.56819607,163.9,163.84,6.56819607]
[1730624221148,3.0528,163.85,163.82,44.9989782]
[1730624221448,3.26,163.87,163.82,41.9458782]
[1730624221650,3.26,163.87,163.81,6.56819607]
[1730624221651,9.82819607,163.87,163.81,6.56819607]
[1730624221947,3.053,163.83,163.81,6.56819607]
[1730624222946,9.82819607,163.87,163.81,9.62149607]
[1730624223138,3.0528,163.84,163.81,9.62149607]
[1730624225450,3.0528,163.84,163.82,3.0531]
[1730624226156,3.0528,163.84,163.82,9.62129607]
[1730624236160,3.0523,163.87,163.84,3.0527]
[1730624236463,3.0523,163.87,163.84,9.62089607]
[1730624255770,3.26,163.9,163.86,6.56819607]
[1730624255970,3.26,163.9,163.88,6.56819607]
[1730624256790,6.3118,163.9,163.88,6.56819607]
[1730624258078,59.76212148,163.95,163.89,6.56819607]
[1730624258280,3.26,163.94,163.89,6.56819607]
[1730624258482,6.311,163.94,163.91,6.56819607]
[1730624259187,3.051,163.94,163.91,6.56819607]
[1730624260393,3.051,163.94,163.91,9.61949607]
[1730624267819,3.0517,163.9,163.88,6.56819607]
[1730624270520,6.56819607,163.93,163.88,6.56819607]
[1730624270909,3.0517,163.9,163.88,6.56819607]
[1730624272618,6.56819607,163.93,163.86,6.56819607]
[1730624272820,1.2692,163.92,163.86,6.56819607]
[1730624273626,3.052,163.89,163.86,6.56819607]
[1730624275122,3.052,163.89,163.86,9.62059607]
[1730624277125,3.052,163.88,163.86,9.62059607]
[1730624281728,9.82819607,163.91,163.86,6.56819607]
[1730624281939,6.56819607,163.9,163.84,6.56819607]
[1730624283323,3.0524,163.86,163.84,6.56819607]
[1730624288227,3.0524,163.86,163.84,9.62099607]
[1730624292043,3.26,163.86,163.81,6.56819607]
[1730624292428,3.26,163.86,163.78,1.2746]
[1730624292429,3.26,163.86,163.83,6.56819607]
[1730624292627,3.26,163.86,163.84,3.0526]
[1730624294335,6.3124,163.86,163.84,3.0526]
[1730624294543,6.3124,163.86,163.83,9.62109607]
[1730624302847,3.26,163.86,163.83,6.56819607]
[1730624303053,3.0527,163.85,163.83,6.56819607]
[1730624312957,3.26,163.86,163.83,6.56819607]
[1730624313157,3.0526,163.85,163.83,6.56819607]
[1730624313556,3.26,163.86,163.81,6.56819607]
[1730624313748,3.053,163.83,163.81,6.56819607]
[1730624315761,9.82819607,163.86,163.8,6.56819607]
[1730624316553,3.0531,163.83,163.8,9.62159607]
[1730624317747,3.0531,163.83,163.82,6.56819607]
[1730624330065,3.0533,163.81,163.8,6.56819607]
[1730624332262,6.56819607,163.85,163.78,9.62199607]
[1730624333962,3.0535,163.81,163.78,9.62199607]
[1730624334363,6.56819607,163.85,163.79,3.0536]
[1730624334767,3.0534,163.81,163.79,3.0536]
[1730624335562,3.0534,163.81,163.78,9.62199607]
[1730624339278,6.56819607,163.85,163.78,6.56819607]
[1730624339480,3.0531,163.83,163.8,3.0534]
[1730624339680,3.0531,163.83,163.79,6.56819607]
[1730624339978,3.0531,163.83,163.8,3.0534]
[1730624340673,3.0531,163.83,163.81,3.0533]
[1730624341176,3.0531,163.83,163.79,6.56819607]
[1730624341374,3.0531,163.83,163.8,3.0535]
[1730624342168,6.56819607,163.85,163.78,6.56819607]
[1730624342367,6.56819607,163.83,163.78,3.0538]
[1730624342969,3.0535,163.81,163.78,3.0538]
[1730624343680,3.0535,163.81,163.78,6.56819607]
[1730624343881,3.0531,163.83,163.78,6.56819607]
[1730624344578,3.0532,163.82,163.78,6.56819607]
[1730624345076,3.0532,163.82,163.79,3.0536]
[1730624348689,6.56819607,163.85,163.78,6.56819607]
[1730624348887,3.0531,163.83,163.8,3.0534]
[1730624355091,6.56819607,163.83,163.78,41.95702738]
[1730624355291,3.0533,163.81,163.78,45.01082738]
[1730624359594,3.0533,163.81,163.78,41.95702738]
[1730624359894,3.0533,163.81,163.79,3.0537]
[1730624363990,3.0532,163.82,163.78,35.38883131]
[1730624364185,6.56819607,163.83,163.78,35.38883131]
[1730624364392,6.56819607,163.82,163.78,35.38883131]
[1730624364591,3.0537,163.79,163.78,35.38883131]
[1730624368097,7.89869607,163.82,163.78,35.38883131]
[1730624368295,3.0536,163.8,163.78,35.38883131]
[1730624368796,7.89869607,163.82,163.78,35.38883131]
[1730624369598,3.0536,163.8,163.78,35.38883131]
[1730624372391,3.0531,163.83,163.8,3.0534]
[1730624372586,3.0531,163.83,163.78,41.95702738]
[1730624372587,3.24,163.84,163.78,41.95702738]
[1730624372792,9.80819607,163.84,163.78,41.95702738]
[1730624372995,3.0532,163.82,163.79,3.0536]
[1730624374901,3.0532,163.82,163.8,3.0535]
[1730624378812,9.80819607,163.84,163.78,41.95702738]
[1730624380013,9.80819607,163.84,163.79,3.0537]
[1730624380805,3.0533,163.82,163.79,3.0537]
[1730624384711,3.0533,163.81,163.79,3.0537]
[1730624399826,3.053,163.83,163.8,9.62159607]
[1730624403326,3.0526,163.85,163.83,3.0529]
[1730624403528,6.2726,163.85,163.81,6.56819607]
[1730624403722,3.22,163.85,163.8,6.56819607]
[1730624403923,9.78819607,163.85,163.79,3.0536]
[1730624404633,3.0533,163.81,163.79,3.0536]
[1730624413348,3.22,163.83,163.78,6.56819607]
[1730624413637,6.273,163.83,163.81,3.0533]
[1730624414042,3.0525,163.86,163.81,6.56819607]
[1730624414235,4.4885,163.88,163.83,3.0528]
[1730624414731,3.0525,163.86,163.83,3.0528]
[1730624415531,3.0522,163.87,163.84,3.0527]
[1730624419236,3.22,163.88,163.82,6.56819607]
[1730624419440,3.0525,163.86,163.82,3.053]
[1730624420444,3.0525,163.86,163.83,3.053]
[1730624422245,3.0525,163.86,163.83,9.62119607]
[1730624423038,3.0527,163.85,163.82,3.0531]
[1730624423446,3.0527,163.85,163.83,3.053]
[1730624423843,11.08289607,163.88,163.83,3.053]
[1730624424049,3.0525,163.86,163.83,3.053]
[1730624426343,11.08289607,163.88,163.83,3.053]
[1730624426552,3.0526,163.85,163.83,3.053]
[1730624427440,3.0525,163.86,163.83,3.053]
[1730624429151,3.0525,163.86,163.83,9.62119607]
[1730624431555,11.08289607,163.88,163.83,6.56819607]
[1730624431753,3.0523,163.87,163.84,3.0527]
[1730624439359,3.0523,163.87,163.84,9.62089607]
[1730624444569,3.0525,163.86,163.83,9.62109607]
[1730624444765,6.56819607,163.88,163.83,9.62109607]
[1730624445469,3.0526,163.85,163.83,9.62109607]
[1730624445680,6.56819607,163.87,163.82,3.0531]
[1730624445970,3.0527,163.85,163.82,3.0531]
[1730624449866,3.0527,163.85,163.82,9.62129607]
[1730624453168,9.76819607,163.87,163.81,6.56819607]
[1730624453765,3.0528,163.85,163.81,9.62149607]
[1730624455182,9.76819607,163.87,163.81,6.56819607]
[1730624455380,3.0528,163.84,163.81,6.56819607]
[1730624455974,3.0528,163.84,163.81,9.62139607]
[1730624457179,3.0527,163.85,163.81,9.62139607]
[1730624457581,3.0527,163.85,163.82,3.0531]
[1730624461587,3.2,163.87,163.82,6.56819607]
[1730624462788,3.0524,163.86,163.83,3.0529]
[1730624466080,3.2,163.87,163.82,6.56819607]
[1730624466287,3.0522,163.87,163.84,9.62079607]
[1730624468887,4.4274,163.88,163.85,3.0526]
[1730624471179,3.0524,163.87,163.83,3.0528]
[1730624471801,3.0524,163.87,163.84,3.0528]
[1730624472688,1.3752,163.88,163.82,6.56819607]
[1730624473188,3.0527,163.85,163.82,9.62119607]
[1730624474186,3.0527,163.85,163.83,3.053]
[1730624474785,3.0525,163.86,163.83,3.053]
[1730624475186,6.56819607,163.87,163.83,3.053]
[1730624476888,3.0524,163.86,163.83,3.053]
[1730624477094,9.76819607,163.87,163.83,3.053]
[1730624478394,3.0526,163.85,163.83,3.053]
[1730624478995,9.76819607,163.87,163.81,35.38197019]
[1730624479197,3.0529,163.84,163.81,38.43517019]
[1730624479390,6.56819607,163.86,163.79,6.56819607]
[1730624479793,6.56819607,163.86,163.8,3.0535]
[1730624480201,9.76819607,163.87,163.8,9.62169607]
[1730624480399,3.053,163.83,163.8,9.62169607]
[1730624481492,3.0526,163.85,163.82,3.0531]
[1730624481986,9.76819607,163.87,163.82,3.0531]
[1730624483597,3.0528,163.84,163.82,3.0531]
[1730624485495,3.0528,163.84,163.8,6.56819607]
[1730624485698,3.0528,163.84,163.81,3.0533]
[1730624486001,6.56819607,163.86,163.79,6.56819607]
[1730624486192,3.0532,163.82,163.79,9.62179607]
[1730624486498,3.0532,163.82,163.79,6.56819607]
[1730624487309,3.0532,163.82,163.8,3.0535]
[1730624492201,3.2,163.86,163.83,3.0529]
[1730624492405,3.2,163.86,163.8,6.56819607]
[1730624492602,3.053,163.83,163.81,3.0532]
[1730624494007,3.2,163.86,163.81,3.0532]
[1730624495395,3.0529,163.84,163.81,3.0532]
[1730624496105,3.053,163.83,163.81,3.0532]
[1730624500606,3.0532,163.82,163.8,3.0535]
[1730624501499,3.0531,163.83,163.8,3.0535]
[1730624502609,3.0533,163.81,163.79,9.62179607]
[1730624503010,6.56819607,163.84,163.79,9.62179607]
[1730624503598,3.0532,163.82,163.79,9.62179607]
[1730624503798,3.0532,163.82,163.8,3.0535]
[1730624505105,3.0532,163.82,163.79,9.62179607]
[1730624506512,3.0532,163.82,163.79,6.56819607]
[1730624506706,3.0532,163.82,163.8,3.0535]
[1730624512422,3.0532,163.82,163.79,9.62179607]
[1730624516419,6.233,163.83,163.81,3.0533]
[1730624516619,3.18,163.83,163.81,3.0533]
[1730624517232,3.0529,163.84,163.81,3.0533]
[1730624517924,3.0526,163.85,163.82,9.62119607]
[1730624518633,3.18,163.88,163.84,6.56819607]
[1730624519928,3.0523,163.87,163.84,9.62079607]
[1730624523037,3.0524,163.86,163.84,9.62079607]
[1730624525921,3.18,163.88,163.84,9.62079607]
[1730624525922,3.0523,163.87,163.84,9.62079607]
[1730624529341,3.18,163.88,163.84,9.62079607]
[1730624529526,3.0525,163.86,163.84,6.56819607]
[1730624529933,3.18,163.88,163.82,6.56819607]
[1730624530135,3.053,163.83,163.8,6.56819607]
[1730624530341,3.053,163.83,163.8,9.62169607]
[1730624530640,3.0532,163.82,163.8,6.56819607]
[1730624531843,3.0533,163.81,163.79,41.9539565]
[1730624533340,3.18,163.83,163.79,35.38576043]
[1730624533541,9.74819607,163.83,163.77,6.56819607]
[1730624533737,6.56819607,163.8,163.74,9.62279607]
[1730624533937,6.56819607,163.8,163.74,6.56819607]
[1730624534134,6.56819607,163.8,163.72,6.56819607]
[1730624534433,6.56819607,163.78,163.72,6.56819607]
[1730624534740,3.0546,163.75,163.71,61.85365482]
[1730624535036,3.18,163.77,163.71,64.90885482]
[1730624535248,9.74819607,163.77,163.71,55.28545875]
[1730624535543,6.56819607,163.75,163.67,6.56819607]
[1730624536043,3.0552,163.72,163.67,6.56819607]
[1730624536642,3.0552,163.72,163.68,3.0556]
[1730624537143,3.0552,163.72,163.69,9.62369607]
[1730624537849,3.0549,163.73,163.67,9.62399607]